fUST/lending_fUST_20250912
["ID","MTS","AMOUNT","RATE_DAILY","PERIOD"]
[385180912,1757679054400,-495.46673766,0.00014246,2]
[385180914,1757679054410,-480.0,0.00014246,2]
[385180916,1757679054419,-480.0,0.00014246,2]
[385180918,1757679054430,-480.0,0.00014246,2]
[385180920,1757679054439,-151.0,0.00014246,2]
[385180922,1757679054449,-480.0,0.00014246,2]
[385180924,1757679054459,-480.0,0.00014246,2]
[385180926,1757679054468,-151.0,0.00014246,2]
[385180928,1757679054478,-480.0,0.00014246,2]
[385180930,1757679054488,-151.0,0.00014246,2]
[385180932,1757679054497,-223.608584,0.00014246,2]
[385180934,1757679054507,-480.0,0.00014246,2]
[385180936,1757679054517,-480.0,0.00014246,2]
[385180938,1757679054527,-480.0,0.00014246,2]
[385180940,1757679054536,-441.88219619,0.00014246,2]
[385180942,1757679054546,-480.0,0.00014246,2]
[385180944,1757679054555,-480.0,0.00014246,2]
[385180947,1757679054566,-480.0,0.00014246,2]
[385180949,1757679054576,-480.0,0.00014246,2]
[385180951,1757679054586,-480.0,0.00014246,2]
[385180953,1757679054600,-480.0,0.00014246,2]
[385180955,1757679054610,-480.0,0.00014246,2]
[385180957,1757679054619,-480.0,0.00014246,2]
[385180959,1757679054629,-480.0,0.00014246,2]
[385180961,1757679054640,-273.014433,0.00014246,2]
[385180963,1757679054650,-480.0,0.00014246,2]
[385180965,1757679054661,-273.014433,0.00014246,2]
[385180967,1757679054671,-480.0,0.00014246,2]
[385180969,1757679054681,-480.0,0.00014246,2]
[385180971,1757679054691,-151.0,0.00014246,2]
[385180973,1757679054700,-273.014433,0.00014246,2]
[385180975,1757679054710,-480.0,0.00014246,2]
[385180977,1757679054720,-273.014433,0.00014246,2]
[385180979,1757679054730,-480.0,0.00014246,2]
[385180981,1757679054739,-399.37135803,0.00014246,2]
[385180984,1757679054749,-488.80296565,0.00014246,2]
[385180986,1757679054758,-490.88282289,0.00014246,2]
[385180988,1757679054768,-170.107706,0.00014246,2]
[385180990,1757679054780,-480.0,0.00014246,2]
[385180992,1757679054791,-480.0,0.00014246,2]
[385180994,1757679054802,-480.0,0.00014246,2]
[385180996,1757679054812,-480.0,0.00014246,2]
[385180998,1757679054822,-151.20656894,0.00014246,2]
[385181000,1757679054832,-337.16326598,0.00014246,2]
[385181002,1757679054842,-480.0,0.00014246,2]
[385181004,1757679054852,-480.0,0.00014246,2]
[385181006,1757679054861,-490.86143636,0.00014246,2]
[385181008,1757679054871,-480.0,0.00014246,2]
[385181010,1757679054881,-480.0,0.00014246,2]
[385181012,1757679054891,-480.0,0.00014246,2]
[385181014,1757679054901,-480.0,0.00014246,2]
[385181017,1757679054911,-480.0,0.00014246,2]
[385181019,1757679054920,-480.0,0.00014246,2]
[385181021,1757679054931,-480.0,0.00014246,2]
[385181023,1757679054940,-480.0,0.00014246,2]
[385181025,1757679054951,-480.0,0.00014246,2]
[385181027,1757679054960,-480.0,0.00014246,2]
[385181029,1757679054970,-480.0,0.00014246,2]
[385181031,1757679054979,-526.29072467,0.00014246,2]
[385181033,1757679054989,-480.0,0.00014246,2]
[385181044,1757679055092,-480.0,0.00014246,2]
[385181046,1757679055102,-480.0,0.00014246,2]
[385181048,1757679055111,-480.0,0.00014246,2]
[385181050,1757679055121,-480.0,0.00014246,2]
[385181052,1757679055131,-480.0,0.00014246,2]
[385181054,1757679055140,-480.0,0.00014246,2]
[385181056,1757679055149,-480.0,0.00014246,2]
[385181058,1757679055159,-480.0,0.00014246,2]
[385181060,1757679055168,-480.0,0.00014246,2]
[385181062,1757679055178,-151.0,0.00014246,2]
[385181064,1757679055188,-480.0,0.00014246,2]
[385181066,1757679055198,-480.0,0.00014246,2]
[385181068,1757679055207,-151.0,0.00014246,2]
[385181070,1757679055219,-480.0,0.00014246,2]
[385181072,1757679055228,-489.63780146,0.00014246,2]
[385181074,1757679055238,-151.0,0.00014246,2]
[385181076,1757679055248,-480.0,0.00014246,2]
[385181078,1757679055259,-480.0,0.00014246,2]
[385181080,1757679055269,-151.0,0.00014246,2]
[385181082,1757679055279,-151.0,0.00014246,2]
[385181084,1757679055290,-480.0,0.00014246,2]
[385181086,1757679055300,-480.0,0.00014246,2]
[385181089,1757679055311,-480.0,0.00014246,2]
[385181091,1757679055321,-151.0,0.00014246,2]
[385181093,1757679055332,-480.0,0.00014246,2]
[385181095,1757679055342,-480.0,0.00014246,2]
[385181096,1757679055352,-151.0,0.00014246,2]
[385181099,1757679055362,-480.0,0.00014246,2]
[385181101,1757679055372,-480.0,0.00014246,2]
[385181102,1757679055382,-151.0,0.00014246,2]
[385181104,1757679055392,-151.0,0.00014246,2]
[385181106,1757679055403,-480.0,0.00014246,2]
[385181108,1757679055413,-480.0,0.00014246,2]
[385181110,1757679055423,-480.0,0.00014246,2]
[385181112,1757679055434,-584.02927392,0.00014246,2]
[385181115,1757679055445,-480.0,0.00014246,2]
[385181117,1757679055455,-151.0,0.00014246,2]
[385181119,1757679055465,-592.80953295,0.00014246,2]
[385181121,1757679055475,-480.0,0.00014246,2]
[385181123,1757679055485,-480.0,0.00014246,2]
[385181124,1757679055495,-480.0,0.00014246,2]
[385181126,1757679055505,-480.0,0.00014246,2]
[385181128,1757679055516,-480.0,0.00014246,2]
[385181131,1757679055526,-500.0,0.00014246,2]
[385181132,1757679055536,-501.08556661,0.00014273,2]
[385181134,1757679055546,-500.0,0.00014273,2]
[385181137,1757679055557,-500.0,0.00014273,2]
[385181138,1757679055567,-500.0,0.00014273,2]
[385181140,1757679055581,-5113.0548724,0.00014289,2]
[385181142,1757679055595,-176.75,0.00014303,2]
[385181145,1757679055611,-176.74,0.00014317,2]
[385181146,1757679055622,-500.0,0.00014495,2]
[385181147,1757679055635,-480.0,0.0001452,2]
[385181148,1757679055645,-489.87823433,0.0001452,2]
[385181149,1757679055654,-480.0,0.0001452,2]
[385181150,1757679055666,-480.0,0.0001452,2]
[385181151,1757679055676,-480.0,0.0001452,2]
[385181152,1757679055686,-480.0,0.0001452,2]
[385181153,1757679055696,-480.0,0.0001452,2]
[385181154,1757679055706,-480.0,0.0001452,2]
[385181155,1757679055716,-480.0,0.0001452,2]
[385181156,1757679055726,-480.0,0.0001452,2]
[385181157,1757679055736,-497.0875179,0.0001452,2]
[385181158,1757679055746,-480.0,0.0001452,2]
[385181159,1757679055757,-480.0,0.0001452,2]
[385181160,1757679055766,-370.04950511,0.0001452,2]
[385181161,1757679055776,-593.44050009,0.0001452,2]
[385181163,1757679055786,-480.0,0.0001452,2]
[385181165,1757679055796,-483.23324054,0.0001452,2]
[385181167,1757679055805,-480.0,0.0001452,2]
[385181168,1757679055814,-485.50320233,0.0001452,2]
[385181170,1757679055824,-480.0,0.0001452,2]
[385181172,1757679055834,-480.0,0.0001452,2]
[385181175,1757679055845,-457.83761362,0.0001452,2]
[385181177,1757679055855,-480.0,0.0001452,2]
[385181179,1757679055866,-350.88918351,0.0001452,2]
[385181181,1757679055876,-480.0,0.0001452,2]
[385181183,1757679055885,-480.0,0.0001452,2]
[385181185,1757679055896,-480.0,0.0001452,2]
[385181187,1757679055906,-509.31083558,0.0001452,2]
[385181189,1757679055919,-485.1175899,0.0001452,2]
[385181191,1757679055929,-543.70766792,0.0001452,2]
[385181193,1757679055939,-480.0,0.0001452,2]
[385181195,1757679055948,-480.0,0.0001452,2]
[385181197,1757679055959,-480.0,0.0001452,2]
[385181199,1757679055968,-480.0,0.0001452,2]
[385181201,1757679055980,-519.04515872,0.0001452,2]
[385181203,1757679055990,-480.0,0.0001452,2]
[385181205,1757679056000,-480.0,0.0001452,2]
[385181207,1757679056010,-480.0,0.0001452,2]
[385181209,1757679056020,-480.0,0.0001452,2]
[385181211,1757679056030,-480.0,0.0001452,2]
[385181213,1757679056040,-480.0,0.0001452,2]
[385181215,1757679056050,-480.0,0.0001452,2]
[385181217,1757679056059,-480.0,0.0001452,2]
[385181219,1757679056069,-480.0,0.0001452,2]
[385181221,1757679056078,-480.0,0.0001452,2]
[385181223,1757679056089,-480.0,0.0001452,2]
[385181225,1757679056100,-480.0,0.0001452,2]
[385181227,1757679056110,-480.0,0.0001452,2]
[385181229,1757679056120,-480.0,0.0001452,2]
[385181231,1757679056130,-480.0,0.0001452,2]
[385181232,1757679056140,-480.0,0.0001452,2]
[385181234,1757679056152,-552.89720791,0.0001452,2]
[385181236,1757679056164,-480.0,0.0001452,2]
[385181238,1757679056177,-490.52124139,0.0001452,2]
[385181240,1757679056186,-480.0,0.0001452,2]
[385181242,1757679056197,-480.0,0.0001452,2]
[385181244,1757679056207,-480.0,0.0001452,2]
[385181246,1757679056218,-480.0,0.0001452,2]
[385181248,1757679056228,-480.0,0.0001452,2]
[385181250,1757679056238,-480.0,0.0001452,2]
[385181252,1757679056248,-480.0,0.0001452,2]
[385181254,1757679056258,-480.0,0.0001452,2]
[385181256,1757679056267,-480.0,0.0001452,2]
[385181258,1757679056277,-480.0,0.0001452,2]
[385181260,1757679056290,-480.0,0.0001452,2]
[385181262,1757679056300,-480.0,0.0001452,2]
[385181264,1757679056310,-480.0,0.0001452,2]
[385181266,1757679056320,-480.0,0.0001452,2]
[385181268,1757679056330,-480.0,0.0001452,2]
[385181270,1757679056340,-480.0,0.0001452,2]
[385181272,1757679056350,-480.0,0.0001452,2]
[385181274,1757679056361,-480.0,0.0001452,2]
[385181276,1757679056371,-480.0,0.0001452,2]
[385181278,1757679056382,-317.29334356,0.0001452,2]
[385181280,1757679056392,-480.0,0.0001452,2]
[385181282,1757679056404,-480.0,0.0001452,2]
[385181284,1757679056414,-480.0,0.0001452,2]
[385181286,1757679056425,-492.82041597,0.0001452,2]
[385181288,1757679056435,-480.0,0.0001452,2]
[385181290,1757679056445,-480.0,0.0001452,2]
[385181292,1757679056455,-499.21331432,0.0001452,2]
[385181294,1757679056464,-480.0,0.0001452,2]
[385181296,1757679056474,-480.0,0.0001452,2]
[385181298,1757679056483,-480.0,0.0001452,2]
[385181299,1757679056494,-480.0,0.0001452,2]
[385181301,1757679056504,-480.0,0.0001452,2]
[385181303,1757679056513,-502.78756328,0.0001452,2]
[385181305,1757679056523,-480.0,0.0001452,2]
[385181307,1757679056533,-480.0,0.0001452,2]
[385181309,1757679056543,-480.0,0.0001452,2]
[385181311,1757679056553,-480.0,0.0001452,2]
[385181313,1757679056562,-480.0,0.0001452,2]
[385181315,1757679056572,-480.0,0.0001452,2]
[385181317,1757679056586,-480.0,0.0001452,2]
[385181319,1757679056595,-480.0,0.0001452,2]
[385181321,1757679056604,-151.0,0.0001452,2]
[385181323,1757679056614,-151.0,0.0001452,2]
[385181325,1757679056625,-160.470075,0.0001452,2]
[385181327,1757679056634,-480.0,0.0001452,2]
[385181329,1757679056643,-198.962247,0.0001452,2]
[385181331,1757679056653,-314.17035389,0.0001452,2]
[385181333,1757679056663,-480.0,0.0001452,2]
[385181335,1757679056673,-480.0,0.0001452,2]
[385181337,1757679056683,-480.0,0.0001452,2]
[385181339,1757679056692,-480.0,0.0001452,2]
[385181341,1757679056701,-164.43759275,0.0001452,2]
[385181343,1757679056710,-449.71670381,0.0001452,2]
[385181345,1757679056719,-480.0,0.0001452,2]
[385181347,1757679056729,-497.46500625,0.0001452,2]
[385181349,1757679056738,-480.0,0.0001452,2]
[385181351,1757679056747,-480.0,0.0001452,2]
[385181352,1757679056756,-480.0,0.0001452,2]
[385181354,1757679056765,-152.734877,0.0001452,2]
[385181356,1757679056774,-151.0,0.0001452,2]
[385181358,1757679056783,-480.0,0.0001452,2]
[385181360,1757679056793,-151.0,0.0001452,2]
[385181362,1757679056803,-151.0,0.0001452,2]
[385181364,1757679056812,-151.0,0.0001452,2]
[385181366,1757679056821,-292.159832,0.0001452,2]
[385181368,1757679056830,-480.0,0.0001452,2]
[385181370,1757679056840,-480.0,0.0001452,2]
[385181372,1757679056849,-480.0,0.0001452,2]
[385181374,1757679056858,-480.0,0.0001452,2]
[385181376,1757679056867,-151.0,0.0001452,2]
[385181378,1757679056877,-199.199335,0.0001452,2]
[385181380,1757679056886,-228.12395856,0.0001452,2]
[385181382,1757679056896,-480.0,0.0001452,2]
[385181384,1757679056905,-480.0,0.0001452,2]
[385181386,1757679056915,-151.0,0.0001452,2]
[385181388,1757679056924,-480.0,0.0001452,2]
[385181390,1757679056933,-480.0,0.0001452,2]
[385181392,1757679056943,-480.0,0.0001452,2]
[385181394,1757679056952,-370.11,0.0001452,2]
[385181396,1757679056962,-480.0,0.0001452,2]
[385181398,1757679056971,-480.0,0.0001452,2]
[385181400,1757679056981,-480.0,0.0001452,2]
[385181402,1757679056990,-480.0,0.0001452,2]
[385181404,1757679056999,-480.0,0.0001452,2]
[385181406,1757679057009,-480.0,0.0001452,2]
[385181408,1757679057018,-480.0,0.0001452,2]
[385181410,1757679057028,-480.0,0.0001452,2]
[385181412,1757679057037,-480.0,0.0001452,2]
[385181414,1757679057046,-480.0,0.0001452,2]
[385181416,1757679057055,-480.0,0.0001452,2]
[385181417,1757679057065,-151.0,0.0001452,2]
[385181419,1757679057074,-151.0,0.0001452,2]
[385181421,1757679057083,-480.0,0.0001452,2]
[385181423,1757679057092,-480.0,0.0001452,2]
[385181425,1757679057102,-515.85134254,0.0001452,2]
[385181427,1757679057111,-151.0,0.0001452,2]
[385181429,1757679057120,-221.301899,0.0001452,2]
[385181431,1757679057129,-480.0,0.0001452,2]
[385181433,1757679057138,-480.0,0.0001452,2]
[385181434,1757679057147,-480.0,0.0001452,2]
[385181436,1757679057157,-267.54342886,0.0001452,2]
[385181438,1757679057167,-480.0,0.0001452,2]
[385181440,1757679057176,-480.0,0.0001452,2]
[385181442,1757679057185,-480.0,0.0001452,2]
[385181444,1757679057194,-480.0,0.0001452,2]
[385181446,1757679057203,-480.0,0.0001452,2]
[385181448,1757679057213,-480.0,0.0001452,2]
[385181450,1757679057223,-480.0,0.0001452,2]
[385181452,1757679057232,-480.0,0.0001452,2]
[385181454,1757679057241,-480.0,0.0001452,2]
[385181456,1757679057251,-480.0,0.0001452,2]
[385181458,1757679057260,-480.0,0.0001452,2]
[385181460,1757679057269,-480.0,0.0001452,2]
[385181462,1757679057279,-480.0,0.0001452,2]
[385181464,1757679057288,-480.0,0.0001452,2]
[385181466,1757679057298,-480.0,0.0001452,2]
[385181468,1757679057308,-480.0,0.0001452,2]
[385181470,1757679057317,-480.0,0.0001452,2]
[385181472,1757679057326,-480.0,0.0001452,2]
[385181474,1757679057336,-480.0,0.0001452,2]
[385181476,1757679057346,-480.0,0.0001452,2]
[385181478,1757679057355,-480.0,0.0001452,2]
[385181479,1757679057364,-562.86161447,0.0001452,2]
[385181481,1757679057374,-480.0,0.0001452,2]
[385181483,1757679057384,-480.0,0.0001452,2]
[385181486,1757679057394,-480.0,0.0001452,2]
[385181487,1757679057403,-480.0,0.0001452,2]
[385181489,1757679057412,-480.0,0.0001452,2]
[385181501,1757679057511,-480.0,0.0001452,2]
[385181503,1757679057521,-480.0,0.0001452,2]
[385181505,1757679057531,-480.0,0.0001452,2]
[385181507,1757679057540,-480.0,0.0001452,2]
[385181509,1757679057549,-480.0,0.0001452,2]
[385181511,1757679057558,-480.0,0.0001452,2]
[385181513,1757679057568,-488.99043806,0.0001452,2]
[385181515,1757679057579,-480.0,0.0001452,2]
[385181517,1757679057589,-461.02074401,0.0001452,2]
[385181519,1757679057600,-213.79,0.0001452,2]
[385181521,1757679057610,-480.0,0.0001452,2]
[385181523,1757679057620,-480.0,0.0001452,2]
[385181525,1757679057629,-480.0,0.0001452,2]
[385181527,1757679057640,-480.0,0.0001452,2]
[385181529,1757679057650,-480.0,0.0001452,2]
[385181531,1757679057660,-251.85645684,0.0001452,2]
[385181533,1757679057670,-480.0,0.0001452,2]
[385181535,1757679057680,-480.0,0.0001452,2]
[385181537,1757679057689,-480.0,0.0001452,2]
[385181539,1757679057698,-480.0,0.0001452,2]
[385181541,1757679057708,-480.0,0.0001452,2]
[385181543,1757679057717,-480.0,0.0001452,2]
[385181545,1757679057727,-480.0,0.0001452,2]
[385181547,1757679057736,-480.0,0.0001452,2]
[385181549,1757679057746,-480.0,0.0001452,2]
[385181551,1757679057755,-480.0,0.0001452,2]
[385181553,1757679057764,-480.0,0.0001452,2]
[385181555,1757679057774,-480.0,0.0001452,2]
[385181557,1757679057783,-480.0,0.0001452,2]
[385181559,1757679057793,-1001.05463351,0.00014521,2]
[385181561,1757679057802,-1004.34897399,0.00014521,2]
[385181563,1757679057812,-500.0,0.00014768,2]
[385181565,1757679057820,-480.0,0.00014794,2]
[385181567,1757679057830,-480.0,0.00014794,2]
[385181569,1757679057839,-480.0,0.00014794,2]
[385181571,1757679057849,-480.0,0.00014794,2]
[385181574,1757679057859,-259.999999,0.00014794,2]
[385181576,1757679057868,-501.78384746,0.00014794,2]
[385181578,1757679057878,-480.0,0.00014794,2]
[385181580,1757679057887,-480.0,0.00014794,2]
[385181582,1757679057898,-480.0,0.00014794,2]
[385181583,1757679057907,-457.787272,0.00014794,2]
[385181586,1757679057917,-480.0,0.00014794,2]
[385181588,1757679057926,-480.0,0.00014794,2]
[385181590,1757679057935,-480.0,0.00014794,2]
[385181592,1757679057945,-480.0,0.00014794,2]
[385181593,1757679057955,-480.0,0.00014794,2]
[385181594,1757679057964,-480.0,0.00014794,2]
[385181595,1757679057973,-480.0,0.00014794,2]
[385181596,1757679057982,-480.0,0.00014794,2]
[385181597,1757679057991,-480.0,0.00014794,2]
[385181598,1757679058000,-422.59115298,0.00014794,2]
[385181599,1757679058008,-480.0,0.00014794,2]
[385181600,1757679058017,-480.0,0.00014794,2]
[385181601,1757679058026,-151.0,0.00014794,2]
[385181602,1757679058035,-151.0,0.00014794,2]
[385181603,1757679058043,-482.74554229,0.00014794,2]
[385181604,1757679058052,-151.0,0.00014794,2]
[385181605,1757679058061,-151.0,0.00014794,2]
[385181606,1757679058070,-151.0,0.00014794,2]
[385181607,1757679058079,-480.0,0.00014794,2]
[385181608,1757679058088,-151.0,0.00014794,2]
[385181609,1757679058097,-462.13926544,0.00014794,2]
[385181610,1757679058106,-480.0,0.00014794,2]
[385181611,1757679058115,-485.31297155,0.00014794,2]
[385181612,1757679058124,-484.54481576,0.00014794,2]
[385181613,1757679058133,-480.0,0.00014794,2]
[385181614,1757679058142,-480.0,0.00014794,2]
[385181615,1757679058152,-480.0,0.00014794,2]
[385181616,1757679058161,-310.26578518,0.00014794,2]
[385181617,1757679058171,-480.0,0.00014794,2]
[385181618,1757679058180,-480.0,0.00014794,2]
[385181619,1757679058193,-480.0,0.00014794,2]
[385181620,1757679058202,-486.36543134,0.00014794,2]
[385181621,1757679058211,-480.0,0.00014794,2]
[385181622,1757679058220,-480.0,0.00014794,2]
[385181623,1757679058228,-445.90972627,0.00014794,2]
[385181624,1757679058237,-551.22779104,0.00014794,2]
[385181625,1757679058245,-480.0,0.00014794,2]
[385181626,1757679058255,-480.0,0.00014794,2]
[385181627,1757679058263,-480.0,0.00014794,2]
[385181628,1757679058272,-480.0,0.00014794,2]
[385181630,1757679058281,-480.0,0.00014794,2]
[385181632,1757679058290,-480.0,0.00014794,2]
[385181634,1757679058299,-480.0,0.00014794,2]
[385181636,1757679058308,-285.35235389,0.00014794,2]
[385181638,1757679058317,-480.0,0.00014794,2]
[385181640,1757679058327,-286.66,0.00014794,2]
[385181642,1757679058336,-529.76015036,0.00014794,2]
[385181644,1757679058345,-497.24624176,0.00014794,2]
[385181646,1757679058354,-480.0,0.00014794,2]
[385181648,1757679058364,-480.0,0.00014794,2]
[385181650,1757679058373,-480.0,0.00014794,2]
[385181652,1757679058383,-480.0,0.00014794,2]
[385181654,1757679058392,-480.0,0.00014794,2]
[385181656,1757679058402,-231.09043074,0.00014794,2]
[385181658,1757679058412,-480.0,0.00014794,2]
[385181660,1757679058421,-480.0,0.00014794,2]
[385181662,1757679058431,-489.76596619,0.00014794,2]
[385181664,1757679058440,-480.0,0.00014794,2]
[385181666,1757679058451,-480.0,0.00014794,2]
[385181668,1757679058460,-480.0,0.00014794,2]
[385181670,1757679058470,-480.0,0.00014794,2]
[385181672,1757679058480,-480.0,0.00014794,2]
[385181674,1757679058490,-480.0,0.00014794,2]
[385181676,1757679058499,-480.0,0.00014794,2]
[385181678,1757679058509,-480.0,0.00014794,2]
[385181680,1757679058518,-480.0,0.00014794,2]
[385181682,1757679058527,-1000.0,0.00014821,2]
[385181684,1757679058537,-1001.97059172,0.00014821,2]
[385181686,1757679058547,-1000.0,0.00014821,2]
[385181688,1757679058556,-10585.41552735,0.00014875,2]
[385181690,1757679058565,-500.0,0.00015042,2]
[385181692,1757679058575,-160.0,0.00015052,2]
[385181694,1757679058588,-160.0,0.00015052,2]
[385181696,1757679058597,-847.0429734,0.00015052,2]
[385181698,1757679058606,-160.0,0.00015052,2]
[385181700,1757679058616,-531.04384426,0.00015052,2]
[385181702,1757679058627,-233.13074058,0.00015052,2]
[385181704,1757679058637,-160.0,0.00015052,2]
[385181706,1757679058648,-160.0,0.00015052,2]
[385181708,1757679058660,-217.7145751,0.00015052,2]
[385181710,1757679058670,-160.0,0.00015052,2]
[385181712,1757679058680,-155.0,0.00015067,2]
[385181714,1757679058689,-480.0,0.00015068,2]
[385181716,1757679058698,-178.38,0.00015068,2]
[385181718,1757679058708,-496.28041285,0.00015068,2]
[385181720,1757679058717,-480.0,0.00015068,2]
[385181722,1757679058727,-480.0,0.00015068,2]
[385181724,1757679058736,-480.0,0.00015068,2]
[385181726,1757679058746,-474.75949799,0.00015068,2]
[385181728,1757679058755,-192.89126168,0.00015068,2]
[385181730,1757679058765,-480.0,0.00015068,2]
[385181732,1757679058775,-410.24646868,0.00015068,2]
[385181747,1757679058907,-480.0,0.00013698,2]
[385181749,1757679058918,-69.75353132,0.00015068,2]
[385181751,1757679058928,-480.0,0.00015068,2]
[385181753,1757679058937,-480.0,0.00015068,2]
[385181755,1757679058947,-480.0,0.00015068,2]
[385181757,1757679058956,-480.0,0.00015068,2]
[385181759,1757679058966,-480.0,0.00015068,2]
[385181761,1757679058975,-480.0,0.00015068,2]
[385181763,1757679058985,-480.0,0.00015068,2]
[385181765,1757679058994,-480.0,0.00015068,2]
[385181767,1757679059004,-480.0,0.00015068,2]
[385181769,1757679059013,-327.48,0.00015068,2]
[385181771,1757679059022,-182.561956,0.00015068,2]
[385181773,1757679059032,-720.0,0.00015144,2]
[385181775,1757679059042,-339.99,0.00015316,2]
[385181777,1757679059051,-206.72,0.00015342,2]
[385181779,1757679059060,-290.97442269,0.00015342,2]
[385181781,1757679059072,-189.02557731,0.00015342,2]
[385181783,1757679059082,-480.0,0.00015342,2]
[385181785,1757679059092,-480.0,0.00015342,2]
[385181787,1757679059101,-480.0,0.00015342,2]
[385181789,1757679059111,-1500.0,0.00015368,2]
[385181791,1757679059120,-1500.0,0.00015368,2]
[385181793,1757679059129,-480.0,0.00015616,2]
[385181795,1757679059138,-480.0,0.00015616,2]
[385181797,1757679059148,-480.0,0.00015616,2]
[385181799,1757679059157,-441.84117491,0.00015616,2]
[385181801,1757679059168,-38.15882509,0.00015616,2]
[385181803,1757679059178,-2743.43415786,0.00015625,2]
[385181805,1757679059188,-268.33477296,0.0001589,2]
[385181807,1757679059197,-480.0,0.0001589,2]
[385181809,1757679059206,-480.0,0.0001589,2]
[385181811,1757679059216,-1885.53020489,0.00015916,2]
[385181813,1757679059225,-2000.0,0.00015916,2]
[385181815,1757679059234,-508.45,0.00016164,2]
[385181817,1757679059243,-480.0,0.00016164,2]
[385181819,1757679059252,-155.0,0.00016436,2]
[385181821,1757679059262,-387.61691558,0.00016438,2]
[385181823,1757679059271,-151.0,0.00016438,2]
[385181825,1757679059280,-753.79495446,0.00016464,2]
[385181827,1757679059289,-864.0,0.00016658,2]
[385181829,1757679059298,-1792.52226259,0.00017753,2]
[385181838,1757679059377,-194.28547252,0.00013573,2]
[385181840,1757679059387,-480.0,0.00013698,2]
[385181842,1757679059396,-485.36505383,0.00013698,2]
[385181844,1757679059406,-480.0,0.00013972,2]
[385181846,1757679059416,-480.0,0.00014246,2]
[385181848,1757679059425,-950.91189527,0.00017753,2]
[385181850,1757679059434,-1000.0,0.00018324,2]
[385181852,1757679059443,-328.4695255,0.00019199,2]
[385181854,1757679059452,-409.0,0.00019444,2]
[385181855,1757679059462,-2743.43415786,0.0001988,2]
[385181857,1757679059471,-2074.89093191,0.000199,2]
[385181869,1757679059569,-1000.0,0.00020156,20]
[385181871,1757679059579,-244.0,0.00020156,20]
[385181873,1757679059589,-949.268779,0.00020187,2]
[385181875,1757679059601,-2074.89093185,0.00020299,2]
[385181877,1757679059610,-543.536631,0.00020548,2]
[385181879,1757679059620,-2074.89093185,0.00020699,2]
[385181881,1757679059630,-2074.89093185,0.00021098,2]
[385181883,1757679059641,-2074.89093185,0.00021498,2]
[385181885,1757679059651,-16307.089399,0.000215,2]
[385181887,1757679059661,-2074.89093185,0.00021897,2]
[385181889,1757679059673,-10010.32,0.000221,7]
[385181891,1757679059682,-151.0,0.000221,7]
[385181893,1757679059692,-531.04384426,0.000221,7]
[385181895,1757679059701,-1000.0,0.00022172,20]
[385181897,1757679059710,-492.0,0.00022172,20]
[385181899,1757679059719,-2074.89093185,0.00022297,2]
[385181901,1757679059728,-409.0,0.00022444,2]
[385181903,1757679059738,-2074.89093185,0.00022696,2]
[385181905,1757679059747,-2074.89093185,0.00023095,2]